lending/lending_fUSD_20250418
["ID","MTS","AMOUNT","RATE_DAILY","PERIOD"]
[358344787,1744965063349,-1250.02,0.00062465,120]
[358344788,1744965063359,-831.64,0.00062465,120]
[358344789,1744965063369,-591.76,0.00062465,120]
[358344790,1744965063380,-2013.03,0.00062465,120]
[358344791,1744965063395,-612.45,0.00062465,120]
[358344792,1744965063407,-1583.91,0.00062465,120]
[358344793,1744965063417,-789.97,0.00062465,120]
[358344794,1744965063427,-5573.03,0.00062465,120]
[358344795,1744965063437,-500.0,0.00062465,120]
[358344796,1744965063447,-533.35,0.00062465,120]
[358344797,1744965063458,-500.0,0.00062465,120]
[358344798,1744965063468,-623.83460591,0.00062465,120]
[358344799,1744965063478,-540.2402297,0.00062465,120]
[358344800,1744965063487,-1235.03,0.00062465,120]
[358344801,1744965063497,-500.0,0.00062465,120]
[358344802,1744965063506,-193.32071,0.00062465,120]
[358344803,1744965063517,-500.0,0.00062465,120]
[358344804,1744965063526,-500.0,0.00062465,120]
[358344805,1744965063536,-548.36,0.00062465,120]
[358344806,1744965063546,-291.864448,0.00062465,120]
[358344807,1744965063557,-500.0,0.00062465,120]
[358344808,1744965063567,-291.864448,0.00062465,120]
[358344809,1744965063577,-4216.19,0.00062465,7]
[358344810,1744965063587,-1060.19,0.00062465,120]
[358344811,1744965063597,-151.0,0.00062465,120]
[358344812,1744965063607,-628.42651599,0.00062465,120]
[358344813,1744965063617,-3077.58,0.00062465,120]
[358344814,1744965063627,-500.0,0.00062465,120]
[358344815,1744965063637,-770.9,0.00062465,120]
[358344816,1744965063647,-500.0,0.00062465,120]
[358344817,1744965063657,-4300.91,0.00062465,120]
[358344818,1744965063667,-4156.52,0.00062465,120]
[358344819,1744965063676,-628.19,0.00062465,120]
[358344820,1744965063686,-500.0,0.00062465,120]
[358344821,1744965063696,-500.0,0.00062465,120]
[358344822,1744965063706,-691.54,0.00062465,120]
[358344823,1744965063715,-521.3,0.00062515,120]
[358344824,1744965063725,-890.47,0.00062515,120]
[358344825,1744965063734,-500.0,0.00062515,120]
[358344826,1744965063743,-151.0,0.00062515,120]
[358344827,1744965063753,-151.0,0.00062515,110]
[358344828,1744965063763,-151.0,0.00062515,120]
[358344829,1744965063772,-162.235664,0.00062515,120]
[358344830,1744965063782,-150.0,0.00062539,120]
[358344831,1744965063791,-164.34264901,0.00062563,28]
[358344832,1744965063801,-483.84415617,0.00062582,90]
[358344833,1744965063810,-500.0,0.00063013,120]
[358344834,1744965063820,-500.0,0.00063013,120]
[358344835,1744965063830,-1250.02,0.00063013,120]
[358344836,1744965063841,-831.64,0.00063013,120]
[358344837,1744965063851,-591.76,0.00063013,120]
[358344838,1744965063862,-2013.03,0.00063013,120]
[358344839,1744965063871,-612.45,0.00063013,120]
[358344840,1744965063881,-1583.91,0.00063013,120]
[358344841,1744965063891,-789.97,0.00063013,120]
[358344842,1744965063900,-5573.03,0.00063013,120]
[358344843,1744965063910,-500.0,0.00063013,120]
[358344844,1744965063920,-533.35,0.00063013,120]
[358344845,1744965063930,-500.0,0.00063013,120]
[358344846,1744965063940,-151.0,0.00063013,120]
[358344847,1744965063950,-151.0,0.00063013,120]
[358344848,1744965063960,-151.0,0.00063013,120]
[358344849,1744965063970,-151.0,0.00063013,120]
[358344850,1744965063980,-151.0,0.00063013,120]
[358344851,1744965063991,-267.097449,0.00063013,120]
[358344852,1744965064000,-267.097449,0.00063013,120]
[358344853,1744965064010,-1235.03,0.00063013,120]
[358344854,1744965064020,-373.851447,0.00063013,2]
[358344855,1744965064030,-373.851447,0.00063013,2]
[358344856,1744965064040,-500.0,0.00063013,120]
[358344857,1744965064050,-500.0,0.00063013,120]
[358344858,1744965064172,-500.0,0.00063013,120]
[358344859,1744965064182,-548.36,0.00063013,120]
[358344860,1744965064193,-500.0,0.00063013,120]
[358344861,1744965064203,-4216.19,0.00063013,7]
[358344862,1744965064212,-151.0,0.00063013,120]
[358344863,1744965064222,-314.783498,0.00063013,120]
[358344864,1744965064233,-1060.19,0.00063013,120]
[358344865,1744965064243,-314.783498,0.00063013,120]
[358344866,1744965064254,-3077.58,0.00063013,120]
[358344867,1744965064265,-500.0,0.00063013,120]
[358344868,1744965064275,-770.9,0.00063013,120]
[358344869,1744965064285,-500.0,0.00063013,120]
[358344870,1744965064295,-4300.91,0.00063013,120]
[358344871,1744965064305,-4156.52,0.00063013,120]
[358344872,1744965064314,-628.19,0.00063013,120]
[358344873,1744965064325,-500.0,0.00063013,120]
[358344874,1744965064335,-151.0,0.00063013,120]
[358344875,1744965064345,-310.35968256,0.00063013,120]
[358344876,1744965064355,-691.54,0.00063013,120]
[358344877,1744965064365,-161.33773,0.00063013,120]
[358344878,1744965064375,-521.3,0.00063063,120]
[358344879,1744965064385,-890.47,0.00063063,120]
[358344880,1744965064399,-507.54400063,0.00063063,120]
[358344881,1744965064410,-2645.7,0.000631,60]
[358344882,1744965064420,-500.0,0.00063561,120]
[358344883,1744965064430,-500.0,0.00063561,120]
[358344884,1744965064440,-1250.02,0.00063561,120]
[358344885,1744965064450,-831.64,0.00063561,120]
[358344886,1744965064460,-591.76,0.00063561,120]
[358344887,1744965064470,-2013.03,0.00063561,120]
[358344888,1744965064482,-612.45,0.00063561,120]
[358344889,1744965064491,-1583.91,0.00063561,120]
[358344890,1744965064501,-789.97,0.00063561,120]
[358344891,1744965064510,-5573.03,0.00063561,120]
[358344892,1744965064520,-500.0,0.00063561,120]
[358344893,1744965064530,-533.35,0.00063561,120]
[358344894,1744965064539,-500.0,0.00063561,120]
[358344895,1744965064549,-1235.03,0.00063561,120]
[358344896,1744965064559,-500.0,0.00063561,120]
[358344897,1744965064569,-500.0,0.00063561,120]
[358344898,1744965064579,-500.0,0.00063561,120]
[358344899,1744965064590,-548.36,0.00063561,120]
[358344900,1744965064599,-500.0,0.00063561,120]
[358344901,1744965064609,-4216.19,0.00063561,7]
[358344902,1744965064619,-1060.19,0.00063561,120]
[358344903,1744965064628,-3077.58,0.00063561,120]
[358344904,1744965064638,-500.0,0.00063561,120]
[358344905,1744965064648,-1487.11164,0.00063561,120]
[358344906,1744965064657,-1487.11164,0.00063561,120]
[358344907,1744965064667,-770.9,0.00063561,120]
[358344908,1744965064677,-158.448472,0.00063561,120]
[358344909,1744965064688,-500.0,0.00063561,120]
[358344910,1744965064697,-4300.91,0.00063561,120]
[358344911,1744965064707,-4156.52,0.00063561,120]
[358344912,1744965064718,-628.19,0.00063561,120]
[358344913,1744965064728,-500.0,0.00063561,120]
[358344914,1744965064738,-151.0,0.00063561,120]
[358344915,1744965064747,-151.0,0.00063561,120]
[358344916,1744965064756,-691.54,0.00063561,120]
[358344917,1744965064766,-521.3,0.00063611,120]
[358344918,1744965064775,-890.47,0.00063611,120]
[358344919,1744965064785,-207.97,0.00063617,2]
[358344920,1744965064795,-168.09,0.00063664,2]
[358344921,1744965064804,-238.92,0.00063882,120]
[358344922,1744965064814,-1000.0,0.00063936,120]
[358344923,1744965064824,-180.0,0.00064092,15]
[358344924,1744965064834,-500.0,0.00064109,120]
[358344925,1744965064844,-500.0,0.00064109,120]
[358344926,1744965064854,-1250.02,0.00064109,120]
[358344927,1744965064864,-831.64,0.00064109,120]
[358344928,1744965064874,-591.76,0.00064109,120]
[358344929,1744965064884,-2013.03,0.00064109,120]
[358344930,1744965064893,-612.45,0.00064109,120]
[358344931,1744965064903,-1583.91,0.00064109,120]
[358344932,1744965064912,-789.97,0.00064109,120]
[358344933,1744965064922,-5573.03,0.00064109,120]
[358344934,1744965064932,-500.0,0.00064109,120]
[358344935,1744965064942,-533.35,0.00064109,120]
[358344936,1744965064952,-500.0,0.00064109,120]
[358344937,1744965064961,-1235.03,0.00064109,120]
[358344938,1744965064971,-500.0,0.00064109,120]
[358344939,1744965064981,-500.0,0.00064109,120]
[358344940,1744965064991,-500.0,0.00064109,120]
[358344941,1744965065003,-548.36,0.00064109,120]
[358344942,1744965065013,-500.0,0.00064109,120]
[358344943,1744965065023,-4216.19,0.00064109,7]
[358344944,1744965065033,-1060.19,0.00064109,120]
[358344945,1744965065044,-3077.58,0.00064109,120]
[358344946,1744965065054,-501.92406764,0.00064109,120]
[358344947,1744965065064,-770.9,0.00064109,120]
[358344948,1744965065073,-500.0,0.00064109,120]
[358344949,1744965065085,-4300.91,0.00064109,120]
[358344950,1744965065095,-4156.52,0.00064109,120]
[358344951,1744965065105,-628.19,0.00064109,120]
[358344952,1744965065115,-500.0,0.00064109,120]
[358344953,1744965065125,-691.54,0.00064109,120]
[358344954,1744965065135,-521.3,0.00064159,120]
[358344955,1744965065145,-890.47,0.00064159,120]
[358344956,1744965065155,-2024.53989351,0.00064561,25]
[358344957,1744965065337,-2779.25478478,0.00064561,25]
[358344958,1744965065353,-1669.20532171,0.00064561,25]
[358344959,1744965065364,-53.79497829,0.00064572,80]
[358344960,1744965065376,-459.21781627,0.00064572,80]
[358344961,1744965065386,-151.0,0.00064657,120]
[358344962,1744965065399,-500.0,0.00064657,120]
[358344963,1744965065409,-500.0,0.00064657,120]
[358344964,1744965065418,-151.0,0.00064657,30]
[358344965,1744965065429,-261.047419,0.00064657,120]
[358344966,1744965065439,-151.0,0.00064657,120]
[358344967,1744965065447,-261.047419,0.00064657,120]
[358344968,1744965065457,-1250.02,0.00064657,120]
[358344969,1744965065467,-831.64,0.00064657,120]
[358344970,1744965065477,-531.21829893,0.00064657,120]
[358344971,1744965065490,-60.54170107,0.00064657,120]
[358344972,1744965065501,-169.77373,0.00064657,120]
[358344973,1744965065511,-2013.03,0.00064657,120]
[358344974,1744965065521,-612.45,0.00064657,120]
[358344975,1744965065531,-1583.91,0.00064657,120]
[358344976,1744965065540,-789.97,0.00064657,120]
[358344977,1744965065550,-3392.13144701,0.00064657,120]
[358344978,1744965065592,-500.0,0.00054794,120]
[358344979,1744965065602,-307.52063904,0.00064657,120]
[358344980,1744965065613,-1873.37791395,0.00064657,120]
[358344981,1744965065622,-430.57357019,0.00064657,120]
[358344982,1744965065632,-533.35,0.00064657,120]
[358344983,1744965065642,-500.0,0.00064657,120]
[358344984,1744965065651,-245.952544,0.00064657,120]
[358344985,1744965065660,-245.952544,0.00064657,120]
[358344986,1744965065670,-1235.03,0.00064657,120]
[358344987,1744965065679,-212.79854069,0.00064657,120]
[358344988,1744965065690,-500.0,0.00064657,120]
[358344989,1744965065699,-297.5733943,0.00064657,120]
[358344990,1744965065711,-202.4266057,0.00064657,120]
[358344991,1744965065721,-548.36,0.00064657,120]
[358344992,1744965065731,-51.19071353,0.00064657,120]
[358344993,1744965065744,-448.80928647,0.00064657,120]
[358344994,1744965065754,-2251.19071353,0.00064657,7]
[358344995,1744965067002,-500.0,0.00054794,2]
[358344996,1744965067011,-119.819988,0.00054794,120]
[358344997,1744965067064,-31.180012,0.00054794,120]
[358344998,1744965067074,-500.0,0.00055342,2]
[358344999,1744965067084,-153.680312,0.00055342,120]
[358345000,1744965067094,-543.61128521,0.0005589,2]
[358345001,1744965067105,-1177.98252376,0.00064657,7]
[358345002,1744965067116,-764.23949294,0.00064657,7]
[358345017,1744965398696,610.0,0.00031,120]
[358345018,1744965403437,-180.0,0.00041,14]
[358345019,1744965413854,-5000.0,0.00054695,120]
[358345020,1744965413887,-422.36499771,0.00054695,30]
[358345021,1744965413918,-508.55739868,0.00054794,120]
[358345022,1744965413949,-242.18007594,0.00054794,120]
[358345023,1744965413982,-555.43133233,0.00054794,120]
[358345024,1744965414014,-500.0,0.00054794,120]
[358345025,1744965414048,-515.28668859,0.00054794,120]
[358345026,1744965414081,-518.8523076,0.00054794,120]
[358345027,1744965414114,-500.0,0.00054794,120]
[358345028,1744965414147,-500.0,0.00054794,120]
[358345029,1744965414179,-238.68860024,0.00054794,120]
[358345030,1744965414211,-409.85070395,0.00054794,120]
[358345031,1744965414243,-258.99482255,0.00054794,120]
[358345032,1744965414275,-500.0,0.00054794,120]
[358345033,1744965414305,-500.0,0.00054794,120]
[358345034,1744965414337,-250.0,0.00054794,120]
[358345035,1744965414368,-511.81822624,0.00054794,120]
[358345036,1744965414401,-500.0,0.00054794,120]
[358345037,1744965414435,-500.0,0.00054794,120]
[358345038,1744965414467,-500.0,0.00054794,120]
[358345039,1744965414499,-500.0,0.00054794,120]
[358345040,1744965414530,-619.90233311,0.00054794,120]
[358345041,1744965414561,-514.10217742,0.00054794,120]
[358345042,1744965414751,-500.0,0.00054794,120]
[358345043,1744965414785,-500.0,0.00054794,120]
[358345044,1744965414818,-280.0359551,0.00054794,120]
[358345045,1744965414848,-503.69239242,0.00054794,120]
[358345046,1744965414880,-500.0,0.00054794,120]
[358345047,1744965414912,-500.0,0.00054794,120]
[358345048,1744965414944,-500.0,0.00054794,120]
[358345049,1744965414976,-240.54624315,0.00054794,120]
[358345050,1744965415007,-181.32526105,0.00054794,120]
[358345051,1744965415038,-500.0,0.00054794,120]
[358345052,1744965415070,-517.13332576,0.00054794,120]
[358345053,1744965415102,-508.27002623,0.00054794,120]
[358345054,1744965415134,-500.0,0.00054794,120]
[358345055,1744965415184,-315.93493026,0.00054794,120]
[358345056,1744965415220,-500.0,0.00054794,120]
[358345057,1744965415256,-500.0,0.00054794,120]
[358345058,1744965415291,-500.0,0.00054794,120]
[358345059,1744965415325,-635.55,0.00054794,120]
[358345060,1744965415359,-385.02717605,0.00054794,120]
[358345061,1744965415392,-489.14296144,0.00054794,120]
[358345062,1744965415425,-174.12961568,0.00054794,120]
[358345063,1744965415459,-500.0,0.00054794,120]
[358345064,1744965415491,-503.68313971,0.00054794,120]
[358345065,1744965415524,-500.0,0.00054794,120]
[358345066,1744965415560,-513.79755867,0.00054794,120]
[358345067,1744965415594,-527.27337386,0.00054794,120]
[358345068,1744965415627,-383.84467923,0.00054794,120]
[358345069,1744965415664,-500.0,0.00054794,120]
[358345070,1744965415700,-500.0,0.00054794,120]
[358345071,1744965415735,-500.0,0.00054794,120]
[358345072,1744965415769,-564.35274118,0.00054794,120]
[358345073,1744965415803,-223.98357048,0.00054794,120]
[358345074,1744965415836,-503.07564046,0.00054794,120]
[358345075,1744965415871,-503.65084984,0.00054794,120]
[358345076,1744965415904,-538.32779143,0.00054794,120]
[358345077,1744965415938,-563.97365099,0.00054794,120]
[358345078,1744965415970,-620.85974909,0.00054794,120]
[358345079,1744965416003,-1161.05,0.00054794,120]
[358345080,1744965416036,-500.0,0.00054794,120]
[358345081,1744965416069,-500.0,0.00054794,120]
[358345082,1744965416101,-500.0,0.00054794,120]
[358345083,1744965416134,-500.0,0.00054794,120]
[358345084,1744965416166,-500.0,0.00054794,120]
[358345085,1744965416203,-500.0,0.00054794,120]
[358345086,1744965416392,-500.0,0.00054794,120]
[358345087,1744965416425,-504.88551541,0.00054794,120]
[358345088,1744965416457,-248.62483484,0.00054794,120]
[358345089,1744965416490,-500.0,0.00054794,120]
[358345090,1744965416524,-500.0,0.00054794,120]
[358345091,1744965416561,-503.17380592,0.00054794,120]
[358345092,1744965416593,-500.0,0.00054794,120]
[358345093,1744965416626,-500.0,0.00054794,120]
[358345094,1744965416663,-541.78758546,0.00054794,120]
[358345095,1744965416697,-500.0,0.00054794,120]
[358345096,1744965416730,-500.0,0.00054794,120]
[358345097,1744965416763,-500.0,0.00054794,120]
[358345098,1744965416794,-509.32874814,0.00054794,120]
[358345099,1744965416826,-537.75849772,0.00054794,120]
[358345100,1744965416857,-221.22212938,0.00054794,120]
[358345101,1744965416889,-500.0,0.00054794,120]
[358345102,1744965416921,-500.0,0.00054794,120]
[358345103,1744965416953,-500.0,0.00054794,120]
[358345104,1744965416985,-500.0,0.00054794,120]
[358345105,1744965417017,-500.0,0.00054794,120]
[358345106,1744965417048,-513.26670078,0.00054794,120]
[358345107,1744965417080,-769.39,0.00054794,120]
[358345108,1744965417112,-252.27541067,0.00054794,120]
[358345109,1744965417145,-500.0,0.00054794,120]
[358345110,1744965417177,-500.0,0.00054794,120]
[358345111,1744965417207,-500.0,0.00054794,120]
[358345112,1744965417239,-500.0,0.00054794,120]
[358345113,1744965417271,-500.0,0.00054794,120]
[358345114,1744965417302,-500.0,0.00054794,120]
[358345115,1744965417333,-500.0,0.00054794,120]
[358345116,1744965417365,-500.0,0.00054794,120]
[358345117,1744965417399,-500.0,0.00054794,120]
[358345118,1744965417431,-1075.23,0.00054794,120]
[358345119,1744965417463,-539.44636105,0.00054794,120]
[358345120,1744965417495,-500.0,0.00054794,120]
[358345121,1744965417526,-536.93873204,0.00054794,120]
[358345122,1744965417559,-506.26943027,0.00054794,120]
[358345123,1744965417591,-591.23992565,0.00054794,120]
[358345124,1744965417622,-544.20166908,0.00054794,120]
[358345125,1744965417655,-1039.13,0.00054794,120]
[358345126,1744965417686,-545.19977858,0.00054794,120]
[358345127,1744965417718,-516.57087952,0.00054794,120]
[358345128,1744965417751,-538.07157419,0.00054794,120]
[358345129,1744965417904,-452.43620197,0.00054794,120]
[358345130,1744965417936,-500.0,0.00055342,120]
[358345131,1744965417969,-500.0,0.00055342,120]
[358345132,1744965418001,-500.0,0.00055342,120]
[358345133,1744965418034,-500.0,0.00055342,120]
[358345134,1744965418066,-500.0,0.00055342,120]
[358345135,1744965418097,-537.11396521,0.00055342,120]
[358345136,1744965418128,-500.0,0.00055342,120]
[358345137,1744965418162,-500.0,0.00055342,120]
[358345138,1744965418194,-500.0,0.00055342,120]
[358345139,1744965418226,-500.0,0.00055342,120]
[358345140,1744965418260,-500.0,0.00055342,120]
[358345141,1744965418292,-500.0,0.00055342,120]
[358345142,1744965418323,-532.67985503,0.00055342,120]
[358345143,1744965418351,-500.0,0.00055342,120]
[358345144,1744965418381,-500.0,0.00055342,120]
[358345145,1744965418412,-635.55,0.00055342,120]
[358345146,1744965418444,-500.0,0.00055342,120]
[358345147,1744965418476,-528.70635705,0.00055342,120]
[358345148,1744965418508,-500.0,0.00055342,120]
[358345149,1744965418540,-500.0,0.00055342,120]
[358345150,1744965418575,-1161.05,0.00055342,120]
[358345151,1744965418606,-604.88249218,0.00055342,120]
[358345152,1744965418637,-535.86727417,0.00055342,120]
[358345153,1744965418668,-500.0,0.00055342,120]
[358345154,1744965418699,-479.37499888,0.00055342,120]
[358345155,1744965418732,-500.0,0.00055342,120]
[358345156,1744965418762,-514.93066914,0.00055342,120]
[358345157,1744965418793,-505.68131282,0.00055342,120]
[358345158,1744965418824,-520.09598827,0.00055342,120]
[358345159,1744965418856,-500.0,0.00055342,120]
[358345160,1744965418887,-520.6854784,0.00055342,120]
[358345161,1744965418919,-425.2380925,0.00055342,120]
[358345162,1744965418950,-500.0,0.00055342,120]
[358345163,1744965418982,-500.0,0.00055342,120]
[358345164,1744965419013,-360.44399194,0.00055342,120]
[358345165,1744965419044,-500.0,0.00055342,120]
[358345166,1744965419075,-500.0,0.00055342,120]
[358345167,1744965419105,-500.0,0.00055342,120]
[358345168,1744965419136,-769.39,0.00055342,120]
[358345169,1744965419167,-500.0,0.00055342,120]
[358345170,1744965419198,-500.0,0.00055342,120]
[358345171,1744965419228,-500.0,0.00055342,120]
[358345172,1744965419377,-500.0,0.00055342,120]
[358345173,1744965419410,-500.0,0.00055342,120]
[358345174,1744965419441,-185.02362982,0.00055342,120]
[358345175,1744965419472,-500.0,0.00055342,120]
[358345176,1744965419504,-500.0,0.00055342,120]
[358345177,1744965419534,-1075.23,0.00055342,120]
[358345178,1744965419565,-500.0,0.00055342,120]
[358345179,1744965419597,-1039.13,0.00055342,120]
[358345180,1744965419628,-500.0,0.00055889,120]
[358345181,1744965419659,-500.0,0.0005589,120]
[358345182,1744965419689,-500.0,0.0005589,120]
[358345183,1744965419720,-500.0,0.0005589,120]
[358345184,1744965419751,-500.0,0.0005589,120]
[358345185,1744965419784,-500.0,0.0005589,120]
[358345186,1744965419815,-224.9640716,0.0005589,120]
[358345187,1744965419847,-571.45090325,0.0005589,120]
[358345188,1744965419878,-500.0,0.0005589,120]
[358345189,1744965419909,-500.0,0.0005589,120]
[358345190,1744965419941,-500.0,0.0005589,120]
[358345191,1744965419973,-408.6734836,0.0005589,120]
[358345192,1744965420006,-312.59309528,0.0005589,120]
[358345193,1744965420038,-635.55,0.0005589,120]
[358345194,1744965420072,-500.0,0.0005589,120]
[358345195,1744965420105,-500.0,0.0005589,120]
[358345196,1744965420138,-500.0,0.0005589,120]
[358345197,1744965420171,-1161.05,0.0005589,120]
[358345198,1744965420204,-639.45650144,0.0005589,120]
[358345199,1744965420240,-500.0,0.0005589,120]
[358345200,1744965420273,-500.0,0.0005589,120]
[358345201,1744965420306,-247.65865765,0.0005589,120]
[358345202,1744965420339,-434.89391072,0.0005589,120]
[358345203,1744965420371,-500.0,0.0005589,120]
[358345204,1744965420404,-500.0,0.0005589,120]
[358345205,1744965420435,-500.0,0.0005589,120]
[358345206,1744965420467,-769.39,0.0005589,120]
[358345207,1744965420499,-500.0,0.0005589,120]
[358345208,1744965420530,-259.82867277,0.0005589,120]
[358345209,1744965420563,-500.0,0.0005589,120]
[358345210,1744965420595,-500.0,0.0005589,120]
[358345211,1744965420626,-500.0,0.0005589,120]
[358345212,1744965420661,-500.0,0.0005589,120]
[358345213,1744965420692,-273.51167825,0.0005589,120]
[358345214,1744965420726,-1075.23,0.0005589,120]
[358345215,1744965420758,-500.0,0.0005589,120]
[358345216,1744965420917,-1039.13,0.0005589,120]
[358345217,1744965420951,-500.0,0.00056438,120]
[358345218,1744965420984,-500.0,0.00056438,120]
[358345219,1744965421020,-500.0,0.00056438,120]
[358345220,1744965421054,-500.0,0.00056438,120]
[358345221,1744965421086,-500.0,0.00056438,120]
[358345222,1744965421117,-500.0,0.00056438,120]
[358345223,1744965421150,-500.0,0.00056438,120]
[358345224,1744965421182,-500.0,0.00056438,120]
[358345225,1744965421215,-635.55,0.00056438,120]
[358345226,1744965421246,-500.0,0.00056438,120]
[358345227,1744965421278,-500.0,0.00056438,120]
[358345228,1744965421310,-196.61608789,0.00056438,120]
[358345229,1744965421340,-1161.05,0.00056438,120]
[358345230,1744965421373,-500.0,0.00056438,120]
[358345231,1744965421405,-500.0,0.00056438,120]
[358345232,1744965421437,-500.0,0.00056438,120]
[358345233,1744965421470,-500.0,0.00056438,120]
[358345234,1744965421502,-500.0,0.00056438,120]
[358345235,1744965421536,-769.39,0.00056438,120]
[358345236,1744965421569,-500.0,0.00056438,120]
[358345237,1744965421602,-500.0,0.00056438,120]
[358345238,1744965421634,-500.0,0.00056438,120]
[358345239,1744965421666,-500.0,0.00056438,120]
[358345240,1744965421698,-364.98568248,0.00056438,120]
[358345241,1744965421730,-1075.23,0.00056438,120]
[358345242,1744965421765,-500.0,0.00056438,120]
[358345243,1744965421797,-1039.13,0.00056438,120]
[358345244,1744965421831,-500.0,0.00056985,120]
[358345245,1744965421862,-500.0,0.00056986,120]
[358345246,1744965421894,-500.0,0.00056986,120]
[358345247,1744965421930,-500.0,0.00056986,120]
[358345248,1744965421960,-500.0,0.00056986,120]
[358345249,1744965421992,-500.0,0.00056986,120]
[358345250,1744965422025,-500.0,0.00056986,120]
[358345251,1744965422056,-500.0,0.00056986,120]
[358345252,1744965422088,-500.0,0.00056986,120]
[358345253,1744965422120,-635.55,0.00056986,120]
[358345254,1744965422155,-500.0,0.00056986,120]
[358345255,1744965422190,-500.0,0.00056986,120]
[358345256,1744965422221,-1161.05,0.00056986,120]
[358345257,1744965422254,-500.0,0.00056986,120]
[358345258,1744965422285,-85.85507255,0.00056986,120]
[358345259,1744965424313,290.0,0.0005,30]
[358345274,1744965955193,-150.0,0.00034548,10]
[358345275,1744965955215,-286.28394497,0.00048889,120]
[358345276,1744966010097,-359.48086706,0.00048889,120]
[358345279,1744966027098,-200.0,0.00048645,8]
[358345280,1744966027119,-585.93370714,0.00048889,120]
[358345281,1744966030109,-174.59049129,0.00048889,120]
[358345282,1744966031135,-10541.90312069,0.00048889,120]
[358345283,1744966032080,-945.67582818,0.00048889,120]
[358345284,1744966036072,-266.55570126,0.00048889,120]
[358345285,1744966040079,-1776.15376958,0.00048889,120]
[358345291,1744966231511,-540.78774977,0.00048888,5]
[358345292,1744966231560,-9.21225023,0.00048888,5]
[358345293,1744966231568,-538.67200498,0.00048889,30]
[358345294,1744966231576,-642.00250044,0.00048889,120]
[358345295,1744966231613,-1917.29626969,0.00048889,120]
[358345296,1744966231623,-13757.94207219,0.00048889,120]
[358345297,1744966231668,-470.09774556,0.00048889,120]
[358345298,1744966231678,-6773.14167211,0.00048889,120]
[358345299,1744966231688,-1000.0,0.00048889,120]
[358345300,1744966231723,-1487.62633996,0.00048889,120]
[358345301,1744966231734,-534.10516331,0.00048889,120]
[358345302,1744966231776,-2238.51260755,0.00048889,120]
[358345303,1744966231787,-601.54859924,0.00048889,120]
[358345304,1744966231798,-5967.14959978,0.00048889,120]
[358345305,1744966231807,-207.33744552,0.000498,2]
[358345306,1744966231816,-1049.89884861,0.000499,22]
[358345307,1744966231831,-225.82582365,0.000499,22]
[358345308,1744966231841,-1000.0,0.000519,2]
[358345309,1744966231851,-2480.66891363,0.00053935,2]
[358345310,1744966231861,-207.33744551,0.00054694,2]
[358345311,1744966231871,-502.39204461,0.00054794,7]
[358345312,1744966231882,-526.32176593,0.00054794,120]
[358345313,1744966231891,-500.0,0.00054794,120]
[358345314,1744966231901,-536.55401836,0.00054794,120]
[358345315,1744966231910,-513.77817657,0.00054794,120]
[358345317,1744966231919,-521.2593754,0.00054794,120]
[358345319,1744966231928,-500.0,0.00054794,120]
[358345321,1744966231938,-500.0,0.00054794,120]
[358345323,1744966231947,-534.85564033,0.00054794,120]
[358345325,1744966231958,-528.69238006,0.00054794,120]
[358345327,1744966231967,-500.0012,0.00054794,120]